bitfinex-derivatives/quotes_BTCF0:USTF0_20250416
["timestamp","ask_amount","ask_price","bid_price","bid_amount"]
[1744781376534,0.18802616,83443.0,83442.0,0.1993533]
[1744781377230,0.006,83443.0,83442.0,0.1993533]
[1744781378132,0.1258518,83443.0,83442.0,0.1593333]
[1744781378325,0.2036518,83443.0,83442.0,0.1593333]
[1744781380230,0.0838,83443.0,83442.0,0.1593333]
[1744781380632,0.2036518,83443.0,83442.0,0.1593333]
[1744781381238,0.0838,83443.0,83442.0,0.1593333]
[1744781381534,0.2036518,83443.0,83442.0,0.1593333]
[1744781382038,0.0838,83443.0,83442.0,0.1593333]
[1744781385141,0.006,83443.0,83442.0,0.1593333]
[1744781390541,0.006,83443.0,83442.0,0.1999333]
[1744781390745,0.046,83443.0,83442.0,0.1999333]
[1744781391562,0.0857,83443.0,83442.0,0.1999333]
[1744781391734,0.0857,83443.0,83442.0,0.1593333]
[1744781392837,0.2055518,83443.0,83442.0,0.1593333]
[1744781393339,0.0857,83443.0,83442.0,0.1593333]
[1744781394344,0.0857,83443.0,83442.0,0.1976333]
[1744781395242,0.006,83443.0,83442.0,0.1976333]
[1744781396836,0.006,83443.0,83442.0,0.1593333]
[1744781397440,0.1258518,83443.0,83442.0,0.1199333]
[1744781397636,0.1258518,83443.0,83442.0,0.1198533]
[1744781397947,0.1258518,83443.0,83442.0,8e-05]
[1744781398142,0.1857784,83443.0,83440.0,0.21428]
[1744781398335,0.1857784,83443.0,83442.0,0.1199333]
[1744781400149,0.5465784,83443.0,83442.0,0.1199333]
[1744781400743,0.5465784,83443.0,83442.0,8e-05]
[1744781401138,0.1797856,83441.0,83440.0,0.1198559]
[1744781401342,0.1198576,83439.0,83438.0,0.0599294]
[1744781401848,0.1198691,83431.0,83430.0,0.12930772]
[1744781402149,0.4806691,83431.0,83430.0,0.12930772]
[1744781404650,0.4816691,83431.0,83430.0,0.12930772]
[1744781406053,0.3618,83431.0,83430.0,0.12930772]
[1744781406352,0.4816691,83431.0,83430.0,0.16690772]
[1744781407449,0.4816691,83431.0,83430.0,0.12930772]
[1744781407650,0.4816691,83431.0,83430.0,0.12919972]
[1744781407847,0.4816691,83431.0,83430.0,0.12927972]
[1744781408245,0.4816691,83431.0,83430.0,0.00940922]
[1744781408552,0.4816691,83431.0,83430.0,0.12927972]
[1744781408752,0.4816691,83431.0,83430.0,0.12919972]
[1744781408951,0.4816691,83431.0,83430.0,0.12927972]
[1744781410243,0.3618,83431.0,83430.0,0.12927972]
[1744781410445,0.4816691,83431.0,83430.0,0.16857972]
[1744781411453,0.4816691,83431.0,83430.0,0.12927972]
[1744781412452,0.5198691,83431.0,83430.0,0.12927972]
[1744781412847,0.5198691,83431.0,83430.0,0.00940922]
[1744781413150,0.5198691,83431.0,83430.0,0.00017988]
[1744781413456,0.5198691,83431.0,83430.0,0.00025988]
[1744781413650,0.5198691,83431.0,83430.0,0.00017988]
[1744781413954,0.5198691,83431.0,83430.0,0.00025988]
[1744781414857,0.56941834,83431.0,83430.0,0.00025988]
[1744781415161,0.56941834,83431.0,83430.0,0.12013038]
[1744781417055,0.44954924,83431.0,83430.0,0.12013038]
[1744781417256,0.41134924,83431.0,83430.0,0.15973038]
[1744781418553,0.41134924,83431.0,83430.0,0.20043038]
[1744781419064,0.3618,83431.0,83430.0,0.20043038]
[1744781419252,0.3618,83431.0,83430.0,0.21043038]
[1744781421657,0.4816691,83431.0,83430.0,0.21043038]
[1744781421855,0.3618,83431.0,83430.0,0.21043038]
[1744781422156,0.3618,83431.0,83430.0,0.20043038]
[1744781424454,0.3618,83431.0,83430.0,0.00025988]
[1744781424455,0.4816691,83431.0,83430.0,0.00025988]
[1744781424662,0.4816691,83431.0,83430.0,0.12013038]
[1744781424856,0.4816691,83431.0,83430.0,0.00025988]
[1744781425362,0.5607691,83431.0,83430.0,0.00025988]
[1744781425559,0.5607691,83431.0,83430.0,4.21e-05]
[1744781425759,0.2098124,83421.0,83420.0,0.1798199]
[1744781425963,0.5706124,83421.0,83420.0,0.18900655]
[1744781426256,0.5706124,83421.0,83420.0,0.06902105]
[1744781426459,0.57960437,83421.0,83420.0,0.06910105]
[1744781427353,0.5706124,83421.0,83420.0,0.07010105]
[1744781428172,0.3608,83421.0,83420.0,0.07310105]
[1744781428462,0.36977973,83421.0,83420.0,0.07310105]
[1744781428664,0.36977973,83421.0,83420.0,0.11170105]
[1744781428969,0.3608,83421.0,83420.0,0.11170105]
[1744781430267,0.4806834,83421.0,83420.0,0.07310105]
[1744781430764,0.5579834,83421.0,83420.0,0.07310105]
[1744781431362,0.7037795,83421.0,83420.0,0.07310105]
[1744781431957,0.7037795,83421.0,83420.0,0.01315865]
[1744781432559,0.7037795,83421.0,83420.0,0.00408]
[1744781432770,0.9537795,83421.0,83420.0,0.00054819]
[1744781433061,0.1198921,83415.0,83414.0,0.19668]
[1744781433361,0.1198921,83415.0,83414.0,0.19676]
[1744781433567,0.1198921,83415.0,83414.0,0.19668]
[1744781433762,0.1938921,83415.0,83414.0,0.19676]
[1744781434360,0.1938921,83415.0,83414.0,0.3258581]
[1744781434558,0.1938921,83415.0,83414.0,0.3278581]
[1744781434858,0.1938921,83415.0,83414.0,0.3328581]
[1744781436154,0.24344958,83415.0,83414.0,0.3328581]
[1744781436464,0.24344958,83415.0,83414.0,0.2129646]
[1744781436666,0.24344958,83415.0,83414.0,0.20376]
[1744781436965,0.1199036,83407.0,83406.0,0.01749]
[1744781437165,0.4807036,83407.0,83406.0,0.01749]
[1744781437462,0.4807036,83407.0,83406.0,1e-08]
[1744781437867,0.1199107,83402.0,83401.0,0.0172]
[1744781438067,0.4807107,83402.0,83401.0,0.02614594]
[1744781438668,0.4807107,83402.0,83401.0,0.0172]
[1744781438868,0.5576107,83402.0,83401.0,0.01728]
[1744781439462,0.56777451,83402.0,83401.0,0.01728]
[1744781439863,0.1199194,83396.0,83395.0,0.1774]
[1744781440065,0.1199222,83394.0,83393.0,0.00533605]
[1744781440664,0.20618601,83394.0,83393.0,0.00533605]
[1744781441566,0.20718601,83394.0,83393.0,0.00533605]
[1744781441968,0.20818601,83394.0,83393.0,0.00533605]
[1744781442574,0.20818601,83394.0,83389.0,9.065e-05]
[1744781442575,0.119928,83390.0,83389.0,9.065e-05]
[1744781442762,0.119928,83390.0,83380.0,0.038808]
[1744781442763,0.1199409,83381.0,83380.0,0.038808]
[1744781442969,0.1199496,83375.0,83374.0,0.0001458]
[1744781443267,0.1199496,83375.0,83372.0,0.1774]
[1744781443268,0.1199525,83373.0,83372.0,0.1774]
[1744781443464,0.4807525,83373.0,83372.0,0.1774]
[1744781443665,0.49000697,83373.0,83372.0,0.1774]
[1744781443871,0.56820697,83373.0,83372.0,0.1774]
[1744781444676,0.56820697,83373.0,83372.0,0.2973539]
[1744781444868,0.49000697,83373.0,83372.0,0.38558162]
[1744781445268,0.37005447,83373.0,83372.0,0.39058162]
[1744781445566,0.00017987,83381.0,83380.0,0.1199424]
[1744781445772,0.3608,83389.0,83388.0,0.1199309]
[1744781446171,0.3608,83389.0,83388.0,0.3699309]
[1744781446371,0.3608,83389.0,83388.0,0.1199309]
[1744781446566,0.04955748,83394.0,83393.0,0.1199237]
[1744781446770,0.04955748,83394.0,83393.0,0.1299237]
[1744781447171,0.5,83400.0,83398.0,0.1199165]
[1744781447576,0.09091024,83399.0,83398.0,0.1199165]
[1744781448077,0.09091024,83399.0,83398.0,0.1973165]
[1744781448473,0.21082534,83399.0,83398.0,0.1973165]
[1744781448874,0.21082534,83399.0,83398.0,0.1983165]
[1744781449075,0.21082534,83399.0,83398.0,0.1983965]
[1744781449280,0.21082534,83399.0,83398.0,0.2013965]
[1744781449481,0.09091024,83399.0,83398.0,0.2013965]
[1744781449682,0.09091024,83399.0,83398.0,0.1983965]
[1744781449881,0.21082534,83399.0,83398.0,0.1993965]
[1744781450475,0.21082534,83399.0,83398.0,0.1983965]
[1744781450869,0.1199151,83399.0,83398.0,0.07848]
[1744781451068,0.1950151,83399.0,83398.0,0.0413]
[1744781451483,0.1950151,83399.0,83398.0,0.0423]
[1744781451780,0.5558151,83399.0,83398.0,0.0423]
[1744781451978,0.5558151,83399.0,83398.0,0.00308]
[1744781452176,0.5558151,83399.0,83398.0,0.003]
[1744781452480,0.5558151,83399.0,83398.0,0.00108]
[1744781452868,0.5558151,83399.0,83398.0,0.1209965]
[1744781453068,0.5578151,83399.0,83398.0,0.1199965]
[1744781453279,0.5588151,83399.0,83398.0,0.1199165]
[1744781453469,0.5588151,83399.0,83398.0,0.1199965]
[1744781454687,0.119928,83390.0,83387.0,0.059966]
[1744781454875,0.4807309,83388.0,83387.0,0.0383]
[1744781455080,0.4807309,83388.0,83387.0,0.1582323]
[1744781455374,0.1199323,83387.0,83386.0,0.000108]
[1744781455579,0.1199338,83386.0,83380.0,0.0599711]
[1744781455773,0.5611338,83386.0,83381.0,0.0599697]
[1744781455969,0.5611338,83386.0,83385.0,0.29755507]
[1744781457782,0.57087512,83386.0,83385.0,0.29755507]
[1744781457981,0.57087512,83386.0,83385.0,0.29855507]
[1744781458772,0.119951,83374.0,83370.0,0.0599779]
[1744781458975,0.480751,83374.0,83371.0,0.0599776]
[1744781459178,0.480751,83374.0,83373.0,0.1199525]
[1744781459386,0.1199525,83373.0,83369.0,0.0599789]
[1744781459576,0.1570525,83373.0,83372.0,0.1199539]
[1744781459771,0.16679382,83373.0,83372.0,0.12897367]
[1744781459972,0.16679382,83373.0,83372.0,0.12905367]
[1744781460783,0.20619382,83373.0,83372.0,0.12905367]
[1744781461378,0.20619382,83373.0,83372.0,0.13205367]
[1744781461581,0.20619382,83373.0,83372.0,0.13705367]
[1744781461780,0.16679382,83373.0,83372.0,0.17605367]
[1744781461981,0.12969382,83373.0,83372.0,0.17605367]
[1744781462178,0.12969382,83373.0,83372.0,0.05609977]
[1744781462487,0.12969382,83373.0,83372.0,0.13705367]
[1744781462680,0.20969382,83373.0,83372.0,0.13697367]
[1744781462882,0.20969382,83373.0,83372.0,0.13705367]
[1744781463688,0.20969382,83373.0,83372.0,0.01709977]
[1744781464185,0.20969382,83373.0,83372.0,0.01701977]
[1744781464582,0.20969382,83373.0,83372.0,0.13697367]
[1744781464788,0.17029382,83373.0,83372.0,0.13697367]
[1744781465083,0.22086479,83373.0,83372.0,0.17435367]
[1744781466185,0.22086479,83373.0,83372.0,0.01709977]
[1744781466380,0.30016479,83373.0,83372.0,0.13705367]
[1744781466597,0.30016479,83373.0,83372.0,0.17625367]
[1744781466882,0.22086479,83373.0,83372.0,0.17625367]
[1744781467287,0.29936479,83373.0,83372.0,0.17625367]
[1744781467482,0.25866479,83373.0,83372.0,0.17625367]
[1744781469181,0.16749382,83373.0,83372.0,0.17625367]
[1744781469481,0.20819382,83373.0,83372.0,0.05629977]
[1744781469885,0.20819382,83373.0,83372.0,0.17625367]
[1744781470792,0.16749382,83373.0,83372.0,0.17625367]
[1744781471094,0.12969382,83373.0,83372.0,0.17625367]
[1744781471293,0.12969382,83373.0,83372.0,0.05629977]
[1744781471484,0.20859382,83373.0,83372.0,0.05629977]
[1744781471683,0.20859382,83373.0,83372.0,0.05621977]
[1744781471889,0.20859382,83373.0,83372.0,0.01709977]
[1744781472091,0.56939382,83373.0,83372.0,0.01709977]
[1744781472295,0.56939382,83373.0,83372.0,0.01701977]
[1744781472593,0.56939382,83373.0,83372.0,0.01709977]
[1744781473389,0.57239382,83373.0,83372.0,0.01409977]
[1744781474400,0.57639382,83373.0,83372.0,0.00909977]
[1744781474585,0.1199558,83371.0,83350.0,0.52604]
[1744781474784,0.1199784,83355.0,83354.0,0.0399]
[1744781474985,0.12971972,83355.0,83354.0,0.0399]
[1744781475588,0.20791972,83355.0,83354.0,0.03389725]
[1744781475999,0.20791972,83355.0,83354.0,0.15395705]
[1744781476195,0.20791972,83355.0,83354.0,0.15387705]
[1744781476504,0.12971972,83355.0,83354.0,0.16309893]
[1744781477286,0.12971972,83355.0,83354.0,0.16409893]
[1744781478099,0.16871972,83355.0,83354.0,0.16409893]
[1744781478598,0.20851972,83355.0,83354.0,0.16409893]
[1744781478792,0.12971972,83355.0,83354.0,0.16409893]
[1744781478986,0.00974132,83355.0,83354.0,0.53489893]
[1744781479194,0.00974132,83355.0,83354.0,0.57809893]
[1744781479597,0.00974132,83355.0,83354.0,0.58809893]
[1744781479897,0.00974132,83355.0,83354.0,0.22729893]
[1744781481495,0.09116771,83365.0,83364.0,0.1199654]
[1744781481803,0.09116771,83365.0,83364.0,0.1399654]
[1744781482193,0.09116771,83365.0,83364.0,0.1800654]
[1744781482688,0.21149188,83375.0,83364.0,0.1800654]
[1744781482689,0.15151708,83375.0,83364.0,0.3800825]
[1744781482889,0.18210977,83381.0,83380.0,0.1199424]
[1744781483196,0.18210977,83381.0,83380.0,0.1399424]
[1744781483401,0.0599567,83401.0,83395.0,0.1199208]
[1744781483603,0.0599585,83398.0,83395.0,0.1199208]
[1744781483806,0.0818,83408.0,83395.0,0.1199208]
[1744781484003,0.00017987,83404.0,83395.0,0.1299208]
[1744781485000,0.00017987,83404.0,83395.0,0.1319208]
[1744781485201,0.1199115,83402.0,83395.0,0.1319208]
[1744781485403,0.12008817,83404.0,83395.0,0.1319208]
[1744781485800,0.00017987,83404.0,83395.0,0.4937208]
[1744781486000,0.00017987,83404.0,83395.0,0.5037208]
[1744781487401,0.00017987,83404.0,83395.0,0.1429208]
[1744781488204,0.00017987,83404.0,83395.0,0.1439208]
[1744781489014,0.559957,83400.0,83395.0,0.1239208]
[1744781489205,0.1249194,83396.0,83395.0,0.00408]
[1744781489405,0.1199251,83392.0,83391.0,0.000108]
[1744781489709,0.1199251,83392.0,83391.0,0.1199266]
[1744781489710,0.1798878,83392.0,83391.0,0.1199266]
[1744781489900,0.1798878,83392.0,83391.0,0.1200066]
[1744781490208,0.1798878,83392.0,83391.0,0.1199266]
[1744781490405,0.1798878,83392.0,83391.0,0.1200066]
[1744781490917,0.1808878,83392.0,83391.0,0.1200066]
[1744781491303,0.1798878,83392.0,83391.0,0.1200066]
[1744781491612,0.1808878,83392.0,83391.0,0.1200066]
[1744781492105,0.1808878,83392.0,83391.0,8e-05]
[1744781492810,0.1199366,83384.0,83383.0,0.1199374]
[1744781493002,0.4807366,83384.0,83383.0,0.1199374]
[1744781493401,0.4807366,83384.0,83383.0,0.1200174]
[1744781493605,0.5619366,83384.0,83383.0,0.1200174]
[1744781494107,0.5639366,83384.0,83383.0,0.1200174]
[1744781494710,0.5629366,83384.0,83383.0,0.1200174]
[1744781495211,0.5639366,83384.0,83383.0,0.1200174]
[1744781496200,0.5629366,83384.0,83383.0,0.1200174]
[1744781497702,0.5629366,83384.0,83383.0,8e-05]
[1744781498108,0.1199424,83380.0,83379.0,0.1199426]
[1744781498303,0.1199438,83379.0,83378.0,0.1592]
[1744781498799,0.1199438,83379.0,83378.0,0.15928]
[1744781499209,0.1199438,83379.0,83378.0,0.1592]
[1744781499506,0.129073,83379.0,83378.0,0.15928]
[1744781501005,0.129073,83379.0,83378.0,8e-05]
[1744781501210,0.134073,83379.0,83378.0,8e-05]
[1744781502102,0.137073,83379.0,83378.0,8e-05]
[1744781502707,0.2671292,83379.0,83363.0,0.000108]
[1744781502912,0.4807654,83364.0,83363.0,0.1200748]
[1744781503103,0.4807654,83364.0,83363.0,0.1199668]
[1744781503608,0.4807654,83364.0,83363.0,0.1200468]
[1744781503609,0.0091292,83364.0,83363.0,0.1200468]
[1744781503810,0.0091292,83364.0,83363.0,0.1596468]
[1744781504010,0.1290946,83364.0,83363.0,0.1596468]
[1744781504210,0.0101292,83364.0,83363.0,0.1596468]
[1744781504705,0.1199616,83367.0,83366.0,0.1199625]
[1744781504906,0.3608,83369.0,83368.0,0.1199596]
[1744781505303,0.4807582,83369.0,83368.0,0.1199596]
[1744781505518,0.4807582,83369.0,83368.0,0.1595596]
[1744781506010,0.4807582,83369.0,83368.0,0.1596396]
[1744781506206,0.5208582,83369.0,83368.0,8e-05]
[1744781506408,0.5550582,83369.0,83368.0,8e-05]
[1744781506612,0.5550582,83369.0,83368.0,0.1199596]
[1744781507116,0.1199654,83364.0,83363.0,0.002]
[1744781507510,0.1199654,83364.0,83363.0,0.001]
[1744781507810,0.1199697,83361.0,83360.0,0.2734512]
[1744781508017,0.4807697,83361.0,83360.0,0.15348]
[1744781508316,0.4807697,83361.0,83360.0,0.15356]
[1744781508815,0.4807697,83361.0,83360.0,0.2735312]
[1744781509312,0.4807697,83361.0,83360.0,0.15356]
[1744781509517,0.4817697,83361.0,83360.0,0.2735312]
[1744781510213,0.4817697,83361.0,83360.0,0.15356]
[1744781510411,0.4827697,83361.0,83360.0,0.15356]
[1744781510612,0.4827697,83361.0,83360.0,0.15348]
[1744781511317,0.4827697,83361.0,83360.0,0.2734512]
[1744781511632,0.4827697,83361.0,83360.0,0.2735312]
[1744781512116,0.4827697,83361.0,83360.0,0.1200512]
[1744781516606,0.4827697,83361.0,83360.0,8e-05]
[1744781518208,0.1199769,83356.0,83355.0,0.00017987]
[1744781518610,0.1199769,83356.0,83355.0,0.03547987]
[1744781519408,0.1199769,83356.0,83355.0,0.00017987]
[1744781519809,0.1199769,83356.0,83355.0,0.00025987]
[1744781521115,0.1199769,83356.0,83333.0,0.0600049]
[1744781521116,0.1199971,83342.0,83333.0,0.0600049]
[1744781521317,0.1199971,83342.0,83335.0,0.0001458]
[1744781521318,0.4807971,83342.0,83335.0,0.0001458]
[1744781521516,0.4807971,83342.0,83340.0,0.00900625]
[1744781521913,0.4807971,83342.0,83341.0,0.00523949]
[1744781522220,0.5501971,83342.0,83341.0,0.00515949]
[1744781522520,0.5501971,83342.0,83341.0,0.00523949]
[1744781522720,0.5501971,83342.0,83334.0,0.0328]
[1744781522721,0.1200071,83335.0,83334.0,0.0328]
[1744781522921,0.4808071,83335.0,83334.0,0.0328]
[1744781523410,0.4808071,83335.0,83334.0,0.03288]
[1744781523810,0.4808071,83335.0,83334.0,8e-05]
[1744781524118,0.4818071,83335.0,83334.0,0.1310886]
[1744781524918,0.4818071,83335.0,83334.0,0.1652886]
[1744781525311,0.4818071,83335.0,83334.0,0.14018038]
[1744781526715,0.4818071,83335.0,83334.0,0.08827178]
[1744781526916,0.4818071,83335.0,83334.0,0.05407178]
[1744781527116,0.4818071,83335.0,83334.0,0.05399178]
[1744781527316,0.4818071,83335.0,83334.0,0.05407178]
[1744781527612,0.4818071,83335.0,83334.0,0.01108]
[1744781527812,0.1200187,83327.0,83325.0,0.000108]
[1744781528023,0.4808187,83327.0,83326.0,0.0090818]
[1744781528224,0.4808187,83327.0,83326.0,0.03557999]
[1744781528525,0.4808187,83327.0,83326.0,0.03565999]
[1744781528719,0.5144187,83327.0,83326.0,0.03565999]
[1744781529032,0.5144187,83327.0,83306.0,0.01241604]
[1744781529033,0.1200345,83316.0,83306.0,0.01241604]
[1744781529212,0.1200561,83301.0,83300.0,0.1]
[1744781529418,0.4808561,83301.0,83300.0,0.1]
[1744781529934,0.5472561,83301.0,83300.0,0.1]
[1744781530421,0.3608,83301.0,83300.0,0.3622576]
[1744781530614,0.3608,83301.0,83300.0,0.2200576]
[1744781530815,0.3608,83301.0,83300.0,0.3622576]
[1744781531113,0.12022559,83309.0,83305.0,0.0600251]
[1744781531426,0.1200489,83307.0,83306.0,0.0715]
[1744781531727,0.1200489,83307.0,83306.0,0.1915489]
[1744781531919,0.1536489,83307.0,83306.0,0.1915489]
[1744781532123,0.1200489,83307.0,83306.0,0.1915489]
[1744781533027,0.1220489,83307.0,83306.0,0.1915489]
[1744781533428,0.1200489,83307.0,83306.0,0.1915489]
[1744781533619,0.1220489,83307.0,83306.0,0.1915489]
[1744781534026,0.1210489,83307.0,83306.0,0.1915489]
[1744781534232,0.1230489,83307.0,83306.0,0.1915489]
[1744781534422,0.1240489,83307.0,83306.0,0.1915489]
[1744781535620,0.1220489,83307.0,83306.0,0.1915489]
[1744781535927,0.001,83307.0,83306.0,0.1915489]
[1744781536319,0.003,83307.0,83306.0,0.1915489]
[1744781536627,0.001,83307.0,83306.0,0.1915489]
[1744781536934,0.00017999,83309.0,83308.0,0.120046]
[1744781537223,0.1200279,83321.0,83320.0,0.0600137]
[1744781537417,0.4808237,83325.0,83324.0,0.120023]
[1744781537618,0.3608,83325.0,83324.0,0.120023]
[1744781538220,0.1200193,83327.0,83326.0,0.1200201]
[1744781538422,0.1200216,83325.0,83324.0,0.0339]
[1744781538818,0.0600124,83323.0,83319.0,0.2748346]
[1744781539130,0.1200475,83307.0,83306.0,0.002]
[1744781539330,0.4808475,83307.0,83306.0,0.002]
[1744781539833,0.1200547,83302.0,83301.0,0.0331]
[1744781540026,0.1200561,83301.0,83300.0,0.1]
[1744781540227,0.1541561,83301.0,83300.0,0.1]
[1744781540829,0.1541561,83301.0,83300.0,0.10008]
[1744781541326,0.1200662,83294.0,83293.0,0.00012042]
[1744781541535,0.4808662,83294.0,83293.0,0.00012042]
[1744781542224,0.5504662,83294.0,83293.0,0.00012042]
[1744781542424,0.5504662,83294.0,83293.0,0.00212042]
[1744781543034,0.5504662,83294.0,83293.0,0.00412042]
[1744781543927,0.5504662,83294.0,83293.0,0.00420042]
[1744781548131,0.5504662,83294.0,83293.0,0.12426812]
[1744781548436,0.5504662,83294.0,83293.0,0.00420042]
[1744781548626,0.5504662,83294.0,83293.0,0.12426812]
[1744781549934,0.5504662,83294.0,83293.0,0.00420042]
[1744781550637,0.5504662,83294.0,83293.0,0.00412042]
[1744781550830,0.5504662,83294.0,83293.0,0.00420042]
[1744781551230,0.5504662,83294.0,83293.0,0.00412042]
[1744781551430,0.5504662,83294.0,83293.0,0.00420042]
[1744781553638,0.1896662,83294.0,83293.0,0.00420042]
[1744781555529,0.1896662,83294.0,83293.0,0.12426812]
[1744781555730,0.19861076,83294.0,83293.0,0.00420042]
[1744781556241,0.1896662,83294.0,83293.0,0.00420042]
[1744781556654,0.1896662,83294.0,83293.0,0.00412042]
[1744781556834,0.1896662,83294.0,83293.0,0.00420042]
[1744781557238,0.19866652,83294.0,83293.0,0.00420042]
[1744781557651,0.19866652,83294.0,83293.0,0.00412042]
[1744781557832,0.120072,83290.0,83289.0,0.00516272]
[1744781558338,0.120072,83290.0,83289.0,0.00524272]
[1744781558533,0.12907232,83290.0,83289.0,0.00524272]
[1744781559147,0.13407232,83290.0,83289.0,0.00524272]
[1744781559444,0.13607232,83290.0,83289.0,0.00524272]
[1744781561140,0.1200878,83279.0,83278.0,0.000108]
[1744781561348,0.48988812,83279.0,83278.0,0.000108]
[1744781561634,0.1201066,83266.0,83265.0,0.1535075]
[1744781561834,0.1201066,83266.0,83265.0,0.04253052]
[1744781562148,0.12910692,83266.0,83265.0,0.16263852]
[1744781562446,0.00900032,83266.0,83265.0,0.55653852]
[1744781562653,0.00900032,83266.0,83265.0,0.80653852]
[1744781562950,0.0600465,83276.0,83275.0,0.0600468]
[1744781563646,0.1801421,83276.0,83275.0,0.0600468]
[1744781563852,0.0685,83279.0,83278.0,0.1200893]
[1744781563853,0.003,83279.0,83278.0,0.1200893]
[1744781564160,0.1230889,83279.0,83278.0,0.1200893]
[1744781564348,0.002,83279.0,83278.0,0.1200893]
[1744781564547,0.0600397,83285.0,83284.0,0.1801175]
[1744781564849,0.0600397,83285.0,83284.0,0.1364]
[1744781565545,0.1279397,83285.0,83284.0,0.1364]
[1744781565750,0.1319397,83285.0,83284.0,0.13648]
[1744781566046,0.1339397,83285.0,83284.0,0.13648]
[1744781566248,0.1339397,83285.0,83284.0,8e-05]
[1744781566645,0.1200864,83280.0,83279.0,0.1200872]
[1744781567546,0.1885864,83280.0,83279.0,0.1200872]
[1744781568453,0.0705,83280.0,83272.0,0.000108]
[1744781568640,0.1201066,83268.0,83267.0,0.120104]
[1744781568841,0.1201066,83266.0,83265.0,0.42987612]
[1744781569041,0.1200978,83277.0,83269.0,0.060051]
[1744781569242,0.0600483,83275.0,83274.0,0.5409391]
[1744781569445,0.0600483,83275.0,83274.0,0.1801391]
[1744781570746,0.1801477,83275.0,83274.0,0.1801391]
[1744781571449,0.1801482,83273.0,83272.0,0.1200971]
[1744781572046,0.1200994,83271.0,83270.0,0.0926583]
[1744781572247,0.1200994,83271.0,83270.0,0.000108]
[1744781572650,0.1201066,83266.0,83265.0,0.3608]
[1744781573155,0.1201066,83266.0,83265.0,0.36979766]
[1744781573342,0.1201066,83266.0,83265.0,0.3608]
[1744781573540,0.1914066,83266.0,83265.0,0.3608]
[1744781573954,0.1914066,83266.0,83265.0,0.36088]
[1744781574354,0.1914066,83266.0,83265.0,0.480988]
[1744781574553,0.1914066,83266.0,83265.0,0.36088]
[1744781574946,0.1914066,83266.0,83265.0,0.483988]
[1744781575146,0.1201066,83266.0,83265.0,0.483988]
[1744781575554,0.1201066,83266.0,83265.0,0.485988]
[1744781578753,0.1801537,83271.0,83270.0,0.1201008]
[1744781578954,0.06005,83271.0,83270.0,0.1201008]
[1744781579355,0.0600476,83274.0,83269.0,0.0344]
[1744781579547,0.1211475,83276.0,83275.0,0.1200936]
[1744781580353,0.3608,83311.0,83275.0,0.42]
[1744781580553,0.24566821,83307.0,83295.0,0.4808648]
[1744781580750,0.0600345,83293.0,83290.0,0.3608]
[1744781580947,0.0600297,83299.0,83295.0,0.1200648]
[1744781581159,0.0336,83298.0,83295.0,0.4808648]
[1744781581353,0.1200621,83297.0,83295.0,0.4809448]
[1744781581669,0.30192266,83296.0,83295.0,0.4809448]
[1744781581955,0.1536633,83296.0,83295.0,0.4819448]
[1744781582464,0.1536633,83296.0,83295.0,0.4809448]
[1744781582852,0.0336,83296.0,83295.0,0.4809448]
[1744781583953,0.0336,83296.0,83295.0,0.5424448]
[1744781584167,0.180085,83301.0,83295.0,0.4824121]
[1744781584466,0.1542577,83300.0,83299.0,0.120059]
[1744781584662,0.1542577,83300.0,83296.0,0.1200624]
[1744781584663,0.1200633,83297.0,83296.0,0.1200624]
[1744781584862,0.0342,83300.0,83299.0,0.120059]
[1744781585957,0.1542576,83300.0,83299.0,0.120139]
[1744781586164,0.1542576,83300.0,83299.0,0.120059]
[1744781586360,0.1542576,83300.0,83299.0,0.120139]
[1744781586764,0.1542576,83300.0,83299.0,0.120059]
[1744781586962,0.1542576,83300.0,83299.0,0.120139]
[1744781587160,0.1542576,83300.0,83299.0,0.00108]
[1744781587861,0.1542576,83300.0,83299.0,0.121139]
[1744781588165,0.1552576,83300.0,83299.0,0.121139]
[1744781588466,0.1562576,83300.0,83299.0,0.121139]
[1744781588658,0.1562576,83300.0,83299.0,0.120139]
[1744781589669,0.1562576,83300.0,83299.0,8e-05]
[1744781590166,0.1200633,83296.0,83295.0,0.49224]
[1744781590366,0.1200633,83296.0,83295.0,0.3608]
[1744781590557,0.0600296,83299.0,83287.0,0.00018012]
[1744781590558,0.1200749,83288.0,83287.0,0.00018012]
[1744781590954,0.1200749,83288.0,83287.0,0.12025642]
[1744781591361,0.1525749,83288.0,83287.0,0.12025642]
[1744781592055,0.1525749,83288.0,83287.0,0.00018012]
[1744781592662,0.1525749,83288.0,83287.0,0.00218012]
[1744781593456,0.5133749,83288.0,83287.0,0.00418012]
[1744781593962,0.5133749,83288.0,83287.0,0.00426012]
[1744781596069,0.5133749,83288.0,83287.0,0.12433642]
[1744781596263,0.52259096,83288.0,83287.0,0.12433642]
[1744781596772,0.16179096,83288.0,83287.0,0.12433642]
[1744781597065,0.16179096,83288.0,83287.0,0.00426012]
[1744781597264,0.1525749,83288.0,83287.0,0.00426012]
[1744781597671,0.1525749,83288.0,83287.0,0.00418012]
[1744781597875,0.1525749,83288.0,83287.0,0.00426012]
[1744781600175,0.1878749,83288.0,83287.0,0.12433642]
[1744781600664,0.0678,83288.0,83287.0,0.48513642]
[1744781600864,0.1878749,83288.0,83287.0,0.48513642]
[1744781601370,0.1878749,83288.0,83287.0,0.36506012]
[1744781601567,0.1878749,83288.0,83287.0,0.48513642]
[1744781602069,0.1878749,83288.0,83287.0,0.36506012]
[1744781602272,0.0600396,83285.0,83265.0,0.4923858]
[1744781602568,0.2401865,83280.0,83279.0,0.0600419]
[1744781602774,0.1200922,83278.0,83277.0,0.1200903]
[1744781603469,0.1895922,83278.0,83277.0,0.1200903]
[1744781604275,0.1895922,83278.0,83277.0,0.1230903]
[1744781604570,0.1895922,83278.0,83277.0,0.1280903]
[1744781608867,0.3608,83284.0,83282.0,0.1200821]
[1744781609067,0.4308,83284.0,83283.0,0.0343]
[1744781609771,0.5508806,83284.0,83283.0,0.1543821]
[1744781610366,0.5508806,83284.0,83283.0,0.1573821]
[1744781610568,0.5508806,83284.0,83283.0,0.1593821]
[1744781611278,0.4308,83284.0,83283.0,0.1877821]
[1744781611481,0.5163806,83284.0,83283.0,0.1877821]
[1744781612284,0.3608,83284.0,83283.0,0.1877821]
[1744781612579,0.4808806,83284.0,83283.0,0.1877821]
[1744781613574,0.1200806,83284.0,83283.0,0.3172621]
[1744781613783,0.00018012,83286.0,83285.0,0.1200792]
[1744781614076,0.1890605,83298.0,83297.0,0.1200619]
[1744781614875,0.1890605,83298.0,83297.0,0.1546619]
[1744781616576,0.1910605,83298.0,83297.0,0.1546619]
[1744781617393,0.1200619,83297.0,83296.0,0.12948]
[1744781617883,0.1876619,83297.0,83296.0,0.12948]
[1744781618085,0.5484619,83297.0,83296.0,0.12948]
[1744781618279,0.5484619,83297.0,83296.0,0.12956]
[1744781618486,0.5484619,83297.0,83296.0,8e-05]